[Event "*** Titled Tuesday 3|2 Blitz"]
[Site "Chess.com"]
[Date "2017.05.02"]
[Round "5"]
[White "GamayevOleg"]
[Black "vpantev"]
[Result "1/2-1/2"]
[WhiteElo "2419"]
[BlackElo "2457"]
[TimeControl "180+2"]
[EndTime "14:02:15 PDT"]
[Termination "Game drawn - insufficient material"]

1. d3 {[%clk 0:03:01.9]} 1... d5 {[%clk 0:02:59.1]} 2. e4 {[%clk 0:03:02.8]}
2... dxe4 {[%clk 0:02:59.8]} 3. dxe4 {[%clk 0:03:04.7]} 3... Qxd1+ {[%clk
0:03:01.3]} 4. Kxd1 {[%clk 0:03:06.6]} 4... e5 {[%clk 0:02:58.1]} 5. Nf3 {[%clk
0:03:07.5]} 5... f6 {[%clk 0:02:58.9]} 6. Nfd2 {[%clk 0:03:08.6]} 6... Nc6
{[%clk 0:02:54]} 7. c3 {[%clk 0:03:08.6]} 7... Bc5 {[%clk 0:02:52.6]} 8. f3
{[%clk 0:03:09.4]} 8... h5 {[%clk 0:02:53.3]} 9. Nb3 {[%clk 0:03:08.4]} 9... Bb6
{[%clk 0:02:54]} 10. a4 {[%clk 0:03:09.5]} 10... a5 {[%clk 0:02:52.2]} 11. N1d2
{[%clk 0:03:09.1]} 11... Nh6 {[%clk 0:02:51.6]} 12. Kc2 {[%clk 0:03:09.5]} 12...
Be3 {[%clk 0:02:48.7]} 13. Bc4 {[%clk 0:03:04.8]} 13... Nf7 {[%clk 0:02:46.7]}
14. Re1 {[%clk 0:03:04.7]} 14... Bh6 {[%clk 0:02:47.1]} 15. Nc5 {[%clk 0:03:04]}
15... Nd6 {[%clk 0:02:42.7]} 16. Be6 {[%clk 0:03:03.5]} 16... b6 {[%clk
0:02:39.3]} 17. Bd5 {[%clk 0:02:58.2]} 17... Bd7 {[%clk 0:02:30.8]} 18. Nxd7
{[%clk 0:02:57.9]} 18... Kxd7 {[%clk 0:02:31.4]} 19. Bxc6+ {[%clk 0:02:57.5]}
19... Kxc6 {[%clk 0:02:31.8]} 20. b3 {[%clk 0:02:57.8]} 20... Bxd2 {[%clk
0:02:28.3]} 21. Bxd2 {[%clk 0:02:57]} 21... g6 {[%clk 0:02:29]} 22. Be3 {[%clk
0:02:55.1]} 22... Rad8 {[%clk 0:02:29.3]} 23. Rad1 {[%clk 0:02:55.3]} 23... Rhe8
{[%clk 0:02:29.8]} 24. Rd5 {[%clk 0:02:54.7]} 24... Nc8 {[%clk 0:02:25.7]} 25.
Red1 {[%clk 0:02:51.8]} 25... Rxd5 {[%clk 0:02:26.7]} 26. exd5+ {[%clk
0:02:53.2]} 26... Kd7 {[%clk 0:02:27.1]} 27. c4 {[%clk 0:02:52.6]} 27... Nd6
{[%clk 0:02:27.8]} 28. h3 {[%clk 0:02:52.6]} 28... f5 {[%clk 0:02:26.9]} 29. Kd3
{[%clk 0:02:49.1]} 29... f4 {[%clk 0:02:23.9]} 30. Bg1 {[%clk 0:02:36]} 30...
e4+ {[%clk 0:02:21.5]} 31. fxe4 {[%clk 0:02:36.9]} 31... Rxe4 {[%clk 0:02:21.9]}
32. Rf1 {[%clk 0:02:31.6]} 32... g5 {[%clk 0:02:20.5]} 33. h4 {[%clk 0:02:32.6]}
33... g4 {[%clk 0:02:18.9]} 34. c5 {[%clk 0:02:22.9]} 34... bxc5 {[%clk
0:02:17.8]} 35. Bxc5 {[%clk 0:02:24.8]} 35... Re5 {[%clk 0:02:15.8]} 36. Bxd6
{[%clk 0:02:26.1]} 36... Kxd6 {[%clk 0:02:06.9]} 37. Rxf4 {[%clk 0:02:26.1]}
37... Kxd5 {[%clk 0:02:01.7]} 38. b4 {[%clk 0:02:23.5]} 38... axb4 {[%clk
0:02:01.1]} 39. Rxb4 {[%clk 0:02:25.4]} 39... Re1 {[%clk 0:02:01.1]} 40. Rf4
{[%clk 0:02:21.7]} 40... Rg1 {[%clk 0:01:57.1]} 41. Rf5+ {[%clk 0:02:21.6]}
41... Kd6 {[%clk 0:01:58.3]} 42. Rxh5 {[%clk 0:02:23]} 42... Rxg2 {[%clk
0:01:59.4]} 43. Rg5 {[%clk 0:02:23.9]} 43... g3 {[%clk 0:01:57.5]} 44. h5 {[%clk
0:02:23.8]} 44... Rg1 {[%clk 0:01:58.1]} 45. h6 {[%clk 0:02:22.2]} 45... g2
{[%clk 0:01:58.4]} 46. h7 {[%clk 0:02:23.6]} 46... Rh1 {[%clk 0:01:59.5]} 47.
Rxg2 {[%clk 0:02:22.3]} 47... Rxh7 {[%clk 0:02:00.9]} 48. Kc3 {[%clk 0:02:22.4]}
48... Kc5 {[%clk 0:01:58.8]} 49. Rg5+ {[%clk 0:02:22.6]} 49... Kb6 {[%clk
0:01:59.8]} 50. Kb3 {[%clk 0:02:18.8]} 50... Rh3+ {[%clk 0:01:59.8]} 51. Kb4
{[%clk 0:02:18.8]} 51... Rh4+ {[%clk 0:02:00.9]} 52. Kb3 {[%clk 0:02:19.8]}
52... c5 {[%clk 0:02:00.3]} 53. Rg6+ {[%clk 0:02:16.9]} 53... Ka5 {[%clk
0:02:01.2]} 54. Rc6 {[%clk 0:02:17.7]} 54... Rb4+ {[%clk 0:02:00.7]} 55. Kc3
{[%clk 0:02:18.3]} 55... Rxa4 {[%clk 0:02:01.6]} 56. Rxc5+ {[%clk 0:02:19.1]}
56... Kb6 {[%clk 0:02:02.7]} 57. Rc4 {[%clk 0:02:20.6]} 57... Rxc4+ {[%clk
0:02:03.4]} 58. Kxc4 {[%clk 0:02:22]} 1/2-1/2

[Event "*** Titled Tuesday 3|2 Blitz"]
[Site "Chess.com"]
[Date "2017.05.02"]
[Round "5"]
[White "supertfc"]
[Black "grzechu96"]
[Result "0-1"]
[WhiteElo "2332"]
[BlackElo "2384"]
[TimeControl "180+2"]
[EndTime "14:02:25 PDT"]
[Termination "grzechu96 won by resignation"]

1. e4 {[%clk 0:03:02]} 1... c5 {[%clk 0:03:00.6]} 2. Nf3 {[%clk 0:03:02.7]} 2...
d6 {[%clk 0:03:00.7]} 3. d4 {[%clk 0:03:03.7]} 3... cxd4 {[%clk 0:03:02.6]} 4.
Nxd4 {[%clk 0:03:05.6]} 4... Nf6 {[%clk 0:03:03.6]} 5. Nc3 {[%clk 0:03:06.5]}
5... a6 {[%clk 0:03:05.3]} 6. Nb3 {[%clk 0:03:05.8]} 6... Nc6 {[%clk 0:03:01.8]}
7. Bg5 {[%clk 0:02:56.8]} 7... e6 {[%clk 0:02:59.4]} 8. Qd2 {[%clk 0:02:54.9]}
8... b5 {[%clk 0:02:52]} 9. f3 {[%clk 0:02:31.6]} 9... Bb7 {[%clk 0:02:44.6]}
10. O-O-O {[%clk 0:02:32.1]} 10... Be7 {[%clk 0:02:45.2]} 11. h4 {[%clk
0:02:31.2]} 11... O-O {[%clk 0:02:44.2]} 12. g4 {[%clk 0:02:29.8]} 12... Rc8
{[%clk 0:02:41.3]} 13. Kb1 {[%clk 0:02:29.9]} 13... Ne5 {[%clk 0:02:42.5]} 14.
Rh3 {[%clk 0:02:20.2]} 14... b4 {[%clk 0:02:33.9]} 15. Ne2 {[%clk 0:02:15.5]}
15... Nxf3 {[%clk 0:02:32.8]} 16. Rxf3 {[%clk 0:02:13.2]} 16... Nxe4 {[%clk
0:02:34.2]} 17. Qe3 {[%clk 0:01:59.7]} 17... Nxg5 {[%clk 0:02:33.5]} 18. hxg5
{[%clk 0:01:51.2]} 18... Bxg5 {[%clk 0:02:34.7]} 19. Qf2 {[%clk 0:01:45.9]}
19... Bxf3 {[%clk 0:02:35.3]} 20. Qxf3 {[%clk 0:01:47.8]} 20... a5 {[%clk
0:02:34.3]} 21. Nbd4 {[%clk 0:01:44.2]} 21... d5 {[%clk 0:02:34]} 22. Nc1 {[%clk
0:01:37.8]} 22... Qc7 {[%clk 0:02:32]} 23. Bd3 {[%clk 0:01:34.5]} 23... h6
{[%clk 0:02:30.7]} 24. Nce2 {[%clk 0:01:22.6]} 24... a4 {[%clk 0:02:29]} 25. c3
{[%clk 0:01:02.7]} 25... e5 {[%clk 0:01:44.8]} 26. Nb5 {[%clk 0:01:02.6]} 26...
e4 {[%clk 0:01:46.2]} 27. Qf2 {[%clk 0:00:34]} 27... Qb8 {[%clk 0:01:30.9]} 0-1

[Event "*** Titled Tuesday 3|2 Blitz"]
[Site "Chess.com"]
[Date "2017.05.02"]
[Round "5"]
[White "heartofatiger"]
[Black "aa175"]
[Result "1-0"]
[WhiteElo "1765"]
[BlackElo "1797"]
[TimeControl "180+2"]
[EndTime "14:02:58 PDT"]
[Termination "heartofatiger won by checkmate"]

1. d4 {[%clk 0:03:02]} 1... e6 {[%clk 0:02:46.4]} 2. Nf3 {[%clk 0:03:01.3]} 2...
d5 {[%clk 0:02:47.4]} 3. g3 {[%clk 0:03:00.8]} 3... c5 {[%clk 0:02:46.3]} 4. Bg2
{[%clk 0:03:00.8]} 4... Nc6 {[%clk 0:02:46.8]} 5. O-O {[%clk 0:03:01.3]} 5...
Nf6 {[%clk 0:02:47.8]} 6. b3 {[%clk 0:03:02.3]} 6... Bd6 {[%clk 0:02:48]} 7.
dxc5 {[%clk 0:03:03]} 7... Bxc5 {[%clk 0:02:49.2]} 8. c4 {[%clk 0:03:04.1]} 8...
O-O {[%clk 0:02:48.9]} 9. cxd5 {[%clk 0:03:04.3]} 9... Qxd5 {[%clk 0:02:49.7]}
10. Nc3 {[%clk 0:02:59.9]} 10... Qxd1 {[%clk 0:02:39.2]} 11. Rxd1 {[%clk
0:03:00.7]} 11... Bd7 {[%clk 0:02:36]} 12. Bb2 {[%clk 0:02:59.8]} 12... Rad8
{[%clk 0:02:36.1]} 13. Rac1 {[%clk 0:02:59.7]} 13... Ng4 {[%clk 0:02:28.1]} 14.
e3 {[%clk 0:02:59.9]} 14... Nxe3 {[%clk 0:01:59.9]} 15. fxe3 {[%clk 0:02:59.9]}
15... Bxe3+ {[%clk 0:02:01.8]} 16. Kf1 {[%clk 0:03:00.8]} 16... Bxc1 {[%clk
0:02:03.5]} 17. Rxc1 {[%clk 0:03:01]} 17... Bc8 {[%clk 0:01:59.5]} 18. Ne4
{[%clk 0:03:00.8]} 18... Nb4 {[%clk 0:01:49.4]} 19. Ba3 {[%clk 0:03:00.8]} 19...
Nd3 {[%clk 0:01:50.3]} 20. Rc7 {[%clk 0:02:57.2]} 20... Rfe8 {[%clk 0:01:44.3]}
21. Nd6 {[%clk 0:02:58.1]} 21... Rf8 {[%clk 0:01:29.3]} 22. Ng5 {[%clk
0:02:55.9]} 22... f6 {[%clk 0:01:25.1]} 23. Nxh7 {[%clk 0:02:43.2]} 23... Kxh7
{[%clk 0:01:13.8]} 24. Be4+ {[%clk 0:02:43]} 24... Kh6 {[%clk 0:01:05.2]} 25.
Bxd3 {[%clk 0:02:41.7]} 25... f5 {[%clk 0:00:40.7]} 26. h4 {[%clk 0:02:39.4]}
26... e5 {[%clk 0:00:32.1]} 27. Bc4 {[%clk 0:02:29.1]} 27... Kh5 {[%clk
0:00:12.9]} 28. Be2+ {[%clk 0:02:15.2]} 28... Kg6 {[%clk 0:00:11.9]} 29. Nc4
{[%clk 0:02:08.7]} 29... Rf6 {[%clk 0:00:10.5]} 30. Be7 {[%clk 0:02:04.6]} 30...
Re6 {[%clk 0:00:10.6]} 31. Bxd8 {[%clk 0:02:04.9]} 31... b5 {[%clk 0:00:07.8]}
32. Rxc8 {[%clk 0:02:00.7]} 32... bxc4 {[%clk 0:00:08.6]} 33. Bxc4 {[%clk
0:02:01.6]} 33... Rd6 {[%clk 0:00:09.8]} 34. Bg5 {[%clk 0:01:59.3]} 34... Rd1+
{[%clk 0:00:10.4]} 35. Kf2 {[%clk 0:01:59.5]} 35... Ra1 {[%clk 0:00:10.9]} 36.
b4 {[%clk 0:01:59.5]} 36... Rb1 {[%clk 0:00:11.7]} 37. b5 {[%clk 0:01:59.6]}
37... Rb2+ {[%clk 0:00:12.7]} 38. Kg1 {[%clk 0:02:00.4]} 38... Rb1+ {[%clk
0:00:13.1]} 39. Kg2 {[%clk 0:02:01.6]} 39... Rb2+ {[%clk 0:00:14.1]} 40. Kh3
{[%clk 0:02:02.7]} 40... Rc2 {[%clk 0:00:15]} 41. Bf7+ {[%clk 0:02:02.3]} 41...
Kxf7 {[%clk 0:00:16.9]} 42. Rxc2 {[%clk 0:02:02.4]} 42... Kg6 {[%clk 0:00:18.8]}
43. Rc6+ {[%clk 0:02:01.3]} 43... Kh5 {[%clk 0:00:20.7]} 44. Ra6 {[%clk
0:01:58.2]} 44... g6 {[%clk 0:00:22.6]} 45. Rxa7 {[%clk 0:01:58.1]} 45... e4
{[%clk 0:00:23.7]} 46. Rh7# {[%clk 0:01:58.4]} 1-0

[Event "*** Titled Tuesday 3|2 Blitz"]
[Site "Chess.com"]
[Date "2017.05.02"]
[Round "5"]
[White "Malev212"]
[Black "Blitzstream"]
[Result "0-1"]
[WhiteElo "2480"]
[BlackElo "2465"]
[TimeControl "180+2"]
[EndTime "14:03:03 PDT"]
[Termination "Blitzstream won by checkmate"]

1. e4 {[%clk 0:03:02]} 1... g6 {[%clk 0:03:01.1]} 2. d4 {[%clk 0:03:01.6]} 2...
Bg7 {[%clk 0:03:02.7]} 3. Nc3 {[%clk 0:03:03.1]} 3... b6 {[%clk 0:03:03.8]} 4.
Be3 {[%clk 0:03:04.6]} 4... Bb7 {[%clk 0:03:05.2]} 5. Qd2 {[%clk 0:03:03.7]}
5... d6 {[%clk 0:03:06]} 6. f3 {[%clk 0:03:02.1]} 6... Nd7 {[%clk 0:03:07.2]} 7.
h4 {[%clk 0:03:02.7]} 7... h6 {[%clk 0:03:06.7]} 8. Nge2 {[%clk 0:02:57.5]} 8...
e6 {[%clk 0:03:07.7]} 9. O-O-O {[%clk 0:02:55.2]} 9... Ne7 {[%clk 0:03:08.4]}
10. Kb1 {[%clk 0:02:48.3]} 10... a6 {[%clk 0:03:08.8]} 11. Nc1 {[%clk
0:02:23.9]} 11... c5 {[%clk 0:03:08.2]} 12. dxc5 {[%clk 0:02:14.9]} 12... dxc5
{[%clk 0:03:10.1]} 13. Nd3 {[%clk 0:02:10.5]} 13... Nc6 {[%clk 0:03:05.1]} 14.
Nf4 {[%clk 0:01:49.2]} 14... Nde5 {[%clk 0:02:37.5]} 15. Qf2 {[%clk 0:01:43.2]}
15... Qc7 {[%clk 0:02:29.1]} 16. Be2 {[%clk 0:01:35.5]} 16... Na5 {[%clk
0:02:17.6]} 17. Qf1 {[%clk 0:01:25]} 17... b5 {[%clk 0:02:17.9]} 18. Bc1 {[%clk
0:01:00.1]} 18... Nec4 {[%clk 0:02:03.2]} 19. Bxc4 {[%clk 0:00:59.2]} 19... Nxc4
{[%clk 0:02:00.5]} 20. Nfe2 {[%clk 0:00:55]} 20... b4 {[%clk 0:01:53.8]} 21. Na4
{[%clk 0:00:53.1]} 21... Qa5 {[%clk 0:01:44.9]} 22. b3 {[%clk 0:00:43.9]} 22...
Bc6 {[%clk 0:01:40.9]} 23. Nf4 {[%clk 0:00:28.7]} 23... Na3+ {[%clk 0:01:22.9]}
24. Bxa3 {[%clk 0:00:29.1]} 24... bxa3 {[%clk 0:01:23]} 25. Qc4 {[%clk 0:00:28]}
25... Bxa4 {[%clk 0:01:22.9]} 26. Nxe6 {[%clk 0:00:23.5]} 26... fxe6 {[%clk
0:01:23.1]} 27. Qxe6+ {[%clk 0:00:22.1]} 27... Kf8 {[%clk 0:01:23.8]} 28. Rd3
{[%clk 0:00:07.7]} 28... Bb5 {[%clk 0:01:11.5]} 29. Rd5 {[%clk 0:00:05.5]} 29...
Qc3 {[%clk 0:01:05.4]} 30. e5 {[%clk 0:00:06.3]} 30... Qb2# {[%clk 0:01:06.1]}
0-1

[Event "*** Titled Tuesday 3|2 Blitz"]
[Site "Chess.com"]
[Date "2017.05.02"]
[Round "5"]
[White "hermionegrangermagic"]
[Black "Olkaa"]
[Result "1-0"]
[WhiteElo "2290"]
[BlackElo "2480"]
[TimeControl "180+2"]
[EndTime "14:03:06 PDT"]
[Termination "hermionegrangermagic won by resignation"]

1. e4 {[%clk 0:03:02]} 1... c5 {[%clk 0:02:50.8]} 2. Nf3 {[%clk 0:03:02]} 2...
e6 {[%clk 0:02:50.9]} 3. b3 {[%clk 0:03:01.8]} 3... Nc6 {[%clk 0:02:50.9]} 4.
Bb2 {[%clk 0:03:01.8]} 4... Qc7 {[%clk 0:02:45.4]} 5. d4 {[%clk 0:02:59.5]} 5...
cxd4 {[%clk 0:02:43.7]} 6. Nxd4 {[%clk 0:03:00.5]} 6... Bc5 {[%clk 0:02:24.9]}
7. Nxc6 {[%clk 0:02:19.1]} 7... Qxc6 {[%clk 0:02:08.6]} 8. Bxg7 {[%clk 0:02:10]}
8... Qxe4+ {[%clk 0:02:08.9]} 9. Qe2 {[%clk 0:01:59.4]} 9... Qg6 {[%clk
0:02:07.5]} 10. Bxh8 {[%clk 0:01:59.3]} 10... f6 {[%clk 0:02:09.1]} 11. Nd2
{[%clk 0:01:41]} 11... Qxc2 {[%clk 0:01:56.2]} 12. Qd3 {[%clk 0:01:36]} 12...
Qb2 {[%clk 0:01:53.9]} 13. Rb1 {[%clk 0:01:35.5]} 13... Qe5+ {[%clk 0:01:54.5]}
14. Qe4 {[%clk 0:01:29.9]} 14... Qh5 {[%clk 0:01:30.9]} 15. Bd3 {[%clk
0:01:25.1]} 15... f5 {[%clk 0:01:22.1]} 16. Qf3 {[%clk 0:01:24.4]} 16... Qg6
{[%clk 0:01:20.6]} 17. Qg3 {[%clk 0:01:22.9]} 17... b6 {[%clk 0:01:16.1]} 18.
Qxg6+ {[%clk 0:01:22.3]} 18... hxg6 {[%clk 0:01:18]} 19. Bb2 {[%clk 0:01:20.4]}
19... Bb7 {[%clk 0:01:18.2]} 20. Nf3 {[%clk 0:01:20.7]} 20... Ne7 {[%clk
0:01:16.4]} 21. h4 {[%clk 0:01:19.8]} 21... Bb4+ {[%clk 0:01:07.9]} 22. Kf1
{[%clk 0:01:15.4]} 22... O-O-O {[%clk 0:00:48.6]} 23. Rc1+ {[%clk 0:01:13.1]}
23... Kb8 {[%clk 0:00:49.4]} 24. Be5+ {[%clk 0:01:11.4]} 24... Ka8 {[%clk
0:00:48.5]} 25. Bf6 {[%clk 0:01:12.5]} 25... Rf8 {[%clk 0:00:47.4]} 26. Bxe7
{[%clk 0:01:13.3]} 26... Bxe7 {[%clk 0:00:47.8]} 27. h5 {[%clk 0:01:14.5]} 27...
gxh5 {[%clk 0:00:48.5]} 28. Rxh5 {[%clk 0:01:14.2]} 28... Bd6 {[%clk 0:00:45.8]}
29. Rh7 {[%clk 0:01:10.3]} 29... Rd8 {[%clk 0:00:38.9]} 30. Bb5 {[%clk
0:00:59.9]} 30... Bf4 {[%clk 0:00:39.8]} 31. Rd1 {[%clk 0:00:57.3]} 31... d6
{[%clk 0:00:40.7]} 32. Nd4 {[%clk 0:00:56.6]} 32... e5 {[%clk 0:00:33.4]} 33.
Bc6 {[%clk 0:00:56.9]} 1-0

[Event "*** Titled Tuesday 3|2 Blitz"]
[Site "Chess.com"]
[Date "2017.05.02"]
[Round "5"]
[White "Quiet_Desperation"]
[Black "BjarkeSahl"]
[Result "0-1"]
[WhiteElo "2165"]
[BlackElo "2165"]
[TimeControl "180+2"]
[EndTime "14:03:10 PDT"]
[Termination "BjarkeSahl won by resignation"]

1. e4 {[%clk 0:03:01.9]} 1... c5 {[%clk 0:02:53.8]} 2. Nf3 {[%clk 0:03:02.9]}
2... e6 {[%clk 0:02:54.6]} 3. d4 {[%clk 0:03:03.8]} 3... cxd4 {[%clk 0:02:55.7]}
4. Nxd4 {[%clk 0:03:05.6]} 4... Nc6 {[%clk 0:02:57.2]} 5. Nb5 {[%clk 0:03:04.5]}
5... d6 {[%clk 0:02:55.5]} 6. N1c3 {[%clk 0:03:05.5]} 6... a6 {[%clk 0:02:49.5]}
7. Na3 {[%clk 0:03:06.1]} 7... b5 {[%clk 0:02:50.3]} 8. Nab1 {[%clk 0:03:05.4]}
8... Bb7 {[%clk 0:02:46.4]} 9. Bd3 {[%clk 0:03:05.7]} 9... Ne5 {[%clk 0:02:38]}
10. O-O {[%clk 0:03:05.4]} 10... Nxd3 {[%clk 0:02:38.3]} 11. cxd3 {[%clk
0:03:06.4]} 11... Be7 {[%clk 0:02:39.9]} 12. h3 {[%clk 0:03:06.7]} 12... Bf6
{[%clk 0:02:34.5]} 13. a3 {[%clk 0:03:04.5]} 13... Ne7 {[%clk 0:02:35.2]} 14.
Be3 {[%clk 0:03:00.5]} 14... d5 {[%clk 0:02:32.6]} 15. exd5 {[%clk 0:02:55.6]}
15... Nxd5 {[%clk 0:02:27.3]} 16. Ne4 {[%clk 0:02:45.2]} 16... Nxe3 {[%clk
0:02:18.8]} 17. fxe3 {[%clk 0:02:43.1]} 17... Bxe4 {[%clk 0:02:08]} 18. dxe4
{[%clk 0:02:41.6]} 18... Qxd1 {[%clk 0:02:09.3]} 19. Rxd1 {[%clk 0:02:42.4]}
19... Bxb2 {[%clk 0:02:10.7]} 20. Ra2 {[%clk 0:02:44]} 20... Be5 {[%clk
0:02:11.4]} 21. Nd2 {[%clk 0:02:45.1]} 21... Ke7 {[%clk 0:02:07.6]} 22. Nf3
{[%clk 0:02:45.7]} 22... Bg3 {[%clk 0:02:09]} 23. Nd4 {[%clk 0:02:43.7]} 23...
Rhc8 {[%clk 0:02:06]} 24. Rad2 {[%clk 0:02:41.2]} 24... Rc7 {[%clk 0:02:05.1]}
25. Kf1 {[%clk 0:02:41.7]} 25... Rac8 {[%clk 0:02:05.4]} 26. Ke2 {[%clk
0:02:42.9]} 26... Be5 {[%clk 0:01:52.2]} 27. Kf3 {[%clk 0:02:38.2]} 27... Rc1
{[%clk 0:01:46.8]} 28. g4 {[%clk 0:02:33.1]} 28... Rxd1 {[%clk 0:01:46.8]} 29.
Rxd1 {[%clk 0:02:34.3]} 29... Rc3 {[%clk 0:01:47]} 30. Ke2 {[%clk 0:02:24.9]}
30... Bd6 {[%clk 0:01:43]} 31. a4 {[%clk 0:02:19.4]} 31... bxa4 {[%clk
0:01:38.2]} 32. Rb1 {[%clk 0:02:20.4]} 32... a5 {[%clk 0:01:26.9]} 33. Rb7+
{[%clk 0:02:21]} 33... Kf6 {[%clk 0:01:28]} 34. Ra7 {[%clk 0:02:17.2]} 34... Bb4
{[%clk 0:01:28.5]} 35. h4 {[%clk 0:02:11.9]} 35... h6 {[%clk 0:01:28.5]} 36. g5+
{[%clk 0:01:57.4]} 36... hxg5 {[%clk 0:01:29.1]} 37. hxg5+ {[%clk 0:01:58.4]}
37... Kg6 {[%clk 0:01:30.1]} 38. Nf3 {[%clk 0:01:55.2]} 38... a3 {[%clk
0:01:25]} 39. Ne5+ {[%clk 0:01:55.9]} 39... Kxg5 {[%clk 0:01:26]} 40. Rxf7
{[%clk 0:01:57.2]} 40... a2 {[%clk 0:01:25.7]} 41. Rf1 {[%clk 0:01:57.4]} 41...
Rb3 {[%clk 0:01:23.3]} 42. Ra1 {[%clk 0:01:57.5]} 42... Rb2+ {[%clk 0:01:18.5]}
43. Kd3 {[%clk 0:01:56]} 43... Kh4 {[%clk 0:01:13.8]} 44. Nf3+ {[%clk
0:01:48.9]} 44... Kg3 {[%clk 0:01:14.6]} 45. Nd4 {[%clk 0:01:49.5]} 45... e5
{[%clk 0:01:13.9]} 46. Nf5+ {[%clk 0:01:33.6]} 46... Kf2 {[%clk 0:01:14.8]} 47.
Nxg7 {[%clk 0:01:34.4]} 47... Rd2+ {[%clk 0:01:15.6]} 48. Kc4 {[%clk 0:01:34.9]}
48... Kxe3 {[%clk 0:01:16.6]} 49. Kb3 {[%clk 0:01:31.8]} 49... Kxe4 {[%clk
0:01:15.3]} 50. Rxa2 {[%clk 0:01:31.9]} 50... Rxa2 {[%clk 0:01:15.6]} 51. Kxa2
{[%clk 0:01:33.2]} 51... Kd3 {[%clk 0:01:15.7]} 52. Kb3 {[%clk 0:01:34.2]} 52...
e4 {[%clk 0:01:16.9]} 53. Nf5 {[%clk 0:01:33.5]} 53... e3 {[%clk 0:01:18.2]} 54.
Nxe3 {[%clk 0:01:28.5]} 54... Kxe3 {[%clk 0:01:19.1]} 55. Ka4 {[%clk 0:01:30.2]}
55... Kd3 {[%clk 0:01:20.1]} 56. Kb3 {[%clk 0:01:32.1]} 0-1

[Event "*** Titled Tuesday 3|2 Blitz"]
[Site "Chess.com"]
[Date "2017.05.02"]
[Round "5"]
[White "Ilja_Semjonovs"]
[Black "jcibarra"]
[Result "0-1"]
[WhiteElo "2237"]
[BlackElo "2645"]
[TimeControl "180+2"]
[EndTime "14:03:12 PDT"]
[Termination "jcibarra won by resignation"]

1. d4 {[%clk 0:03:02]} 1... Nf6 {[%clk 0:03:00.4]} 2. Nf3 {[%clk 0:03:02.9]}
2... g6 {[%clk 0:03:01.3]} 3. Bg5 {[%clk 0:03:03.8]} 3... Bg7 {[%clk 0:03:01.9]}
4. Bxf6 {[%clk 0:03:05]} 4... Bxf6 {[%clk 0:03:02.2]} 5. c3 {[%clk 0:03:04.5]}
5... Bg7 {[%clk 0:03:02.2]} 6. e3 {[%clk 0:03:04.7]} 6... O-O {[%clk 0:03:03.8]}
7. Bd3 {[%clk 0:03:04.4]} 7... d6 {[%clk 0:03:05.4]} 8. Nbd2 {[%clk 0:03:04.1]}
8... e5 {[%clk 0:03:06.3]} 9. Qc2 {[%clk 0:03:04.3]} 9... f5 {[%clk 0:03:06.6]}
10. dxe5 {[%clk 0:03:01.5]} 10... dxe5 {[%clk 0:03:08.5]} 11. e4 {[%clk
0:03:02.6]} 11... Kh8 {[%clk 0:02:56.8]} 12. h4 {[%clk 0:02:59.4]} 12... f4
{[%clk 0:02:52.9]} 13. O-O-O {[%clk 0:02:57.3]} 13... Qe7 {[%clk 0:02:49.9]} 14.
Kb1 {[%clk 0:02:35.8]} 14... Nd7 {[%clk 0:02:48.8]} 15. h5 {[%clk 0:02:30.4]}
15... g5 {[%clk 0:02:48.1]} 16. h6 {[%clk 0:02:31.5]} 16... Bf6 {[%clk
0:02:47.9]} 17. Nh2 {[%clk 0:02:32]} 17... Nc5 {[%clk 0:02:47.5]} 18. f3 {[%clk
0:02:30.3]} 18... Rd8 {[%clk 0:02:39.9]} 19. Nb3 {[%clk 0:02:20.8]} 19... Nxd3
{[%clk 0:02:39.9]} 20. Rxd3 {[%clk 0:02:20.3]} 20... Rxd3 {[%clk 0:02:41.8]} 21.
Qxd3 {[%clk 0:02:20.7]} 21... Be6 {[%clk 0:02:42.9]} 22. Ng4 {[%clk 0:02:08]}
22... Rd8 {[%clk 0:02:35.9]} 23. Qb5 {[%clk 0:02:04.7]} 23... c6 {[%clk
0:02:37]} 24. Qc5 {[%clk 0:02:05.2]} 24... Bxb3 {[%clk 0:02:13]} 25. Qxe7 {[%clk
0:02:01.5]} 25... Bxa2+ {[%clk 0:02:14]} 26. Kxa2 {[%clk 0:02:02.3]} 26... Bxe7
{[%clk 0:02:15.9]} 27. Nxe5 {[%clk 0:02:03.2]} 27... Rd2 {[%clk 0:02:16.2]} 28.
Kb3 {[%clk 0:01:56.8]} 28... Kg8 {[%clk 0:02:11.3]} 29. Nc4 {[%clk 0:01:46.7]}
29... Rxg2 {[%clk 0:02:09.5]} 30. Rd1 {[%clk 0:01:47.4]} 30... Kf7 {[%clk
0:01:59.1]} 31. Rd7 {[%clk 0:01:46.9]} 31... g4 {[%clk 0:01:43.3]} 32. fxg4
{[%clk 0:01:44.7]} 32... Ke6 {[%clk 0:01:38.6]} 33. Rxb7 {[%clk 0:01:06.3]}
33... f3 {[%clk 0:01:39.6]} 34. Ne3 {[%clk 0:01:07.1]} 34... f2 {[%clk
0:01:36.1]} 35. Rxa7 {[%clk 0:00:58]} 35... Bc5 {[%clk 0:01:32.7]} 36. Nxg2
{[%clk 0:00:46.3]} 36... Bxa7 {[%clk 0:01:26.1]} 37. Nf4+ {[%clk 0:00:44.8]}
37... Kf7 {[%clk 0:01:19.3]} 0-1